[Event "XV American Continental 2022"]
[Site "San Salvador"]
[Date "2022.05.03"]
[Round "1.1"]
[White "Swiercz, Dariusz"]
[Black "Encinas Varela, David"]
[Result "1-0"]
[ECO "B51"]
[WhiteElo "2665"]
[BlackElo "1908"]
[Annotator "TA"]
[PlyCount "85"]
[EventDate "2022.05.02"]
[EventCountry "ESA"]
[SourceTitle "playchess.com"]
[Source "ChessBase"]
[SourceQuality "1"]
[TimeControl "40/5400+30:1800+30"]

{[%evp 9,85,1,20,20,29,12,38,10,40,22,24,-4,-2,-6,19,16,21,15,13,10,9,12,30,12,10,3,3,2,8,8,8,14,10,2,2,2,4,6,5,6,20,3,15,0,0,0,68,68,68,68,67,68,68,64,118,116,95,107,29960,29955,6168,5197,29972,29973,29974,29975,29975,29976,29975,29976,29977,29978,29980,29981,29981,29982,29981,29982]} 1. e4 {[%emt 0:00:22]} c5 {[%emt 0:00:19]} 2. Nf3 {[%emt 0:00:25]} d6 {[%emt 0:00:37]} 3. Bb5+ {[%emt 0:00:20]} Nd7 {[%emt 0:00:54]} 4. Ba4 {[%emt 0:02:59]} Ngf6 {[%emt 0:00:37]} 5. O-O {[%emt 0:00:06]} g6 {[%emt 0:00:15]} 6. Re1 {[%emt 0:00:45] B51: Sicilian: Moscow Variation (3 Bb5+) without 3...Bd7.} Bg7 {[%emt 0:00:19]} 7. c3 {[%emt 0:00:07]} O-O {[%emt 0:04:09]} 8. d4 {[%emt 0:00:04] White is slightly better.} e5 {[%emt 0:06:43]} 9. dxe5 {[%emt 0:12:50]} Nxe5 {[%emt 0:03:59] [#]} 10. Bf4 $146 {[%emt 0:09:04]} ({Predecessor:} 10. Nxe5 dxe5 11. Qe2 Nh5 12. Bb3 Kh8 13. Be3 b6 14. Na3 Bb7 15. Rad1 Qe7 16. Bd5 Bxd5 17. Rxd5 {1-0 (54) Eljanov,P (2683)-Salem,A (2690) Abu Dhabi 2021}) 10... Nh5 {[%emt 0:24:43]} 11. Bxe5 {[%emt 0:13:49]} Bxe5 {[%emt 0:03:07]} 12. Nxe5 {[%emt 0:09:51]} (12. Na3 {feels hotter.} Bg4 13. h3 Bxf3 14. Qxf3 a6 15. g3) 12... dxe5 {[%emt 0:00:15]} 13. Qxd8 {[%emt 0:00:02]} Rxd8 {[%emt 0:00:16]} 14. Na3 {[%emt 0:01:30]} Be6 {[%emt 0:09:20]} 15. Bb3 {[%emt 0:00:06]} Nf4 {[%emt 0:07:53][%cal Ob7b5]} 16. Bxe6 {[%emt 0:00:06]} Nxe6 {[%emt 0:00:44]} 17. Nc4 {[%emt 0:01:20]} f6 {[%emt 0:00:20]} 18. a4 {[%emt 0:00:04]} Rd3 {[%emt 0:02:43]} 19. Red1 {[%emt 0:10:12]} Rad8 {[%emt 0:00:44]} 20. Rxd3 {[%emt 0:00:05]} Rxd3 $11 {[%emt 0:00:08][%mdl 4096] Endgame KRN-KRN} 21. Kf1 {[%emt 0:00:07]} b6 {[%emt 0:06:04]} 22. g3 {[%emt 0:00:39]} Kf7 {[%emt 0:02:12]} 23. Ke2 {[%emt 0:00:06]} Rd7 {[%emt 0:00:25]} 24. h4 {[%emt 0:00:05]} Nc7 {[%emt 0:02:43]} 25. Ne3 {[%emt 0:05:35]} Ke6 {[%emt 0:00:45]} 26. f4 {[%emt 0:12:01]} exf4 {[%emt 0:05:40]} 27. gxf4 {[%emt 0:00:02]} f5 {[%emt 0:00:30]} (27... Ne8 $11) 28. e5 $1 $14 {[%emt 0:01:38]} Nd5 {[%emt 0:00:36]} 29. Nxd5 {[%emt 0:00:28]} Rxd5 {[%emt 0:00:11] KR-KR} 30. b3 {[%emt 0:04:35]} Rd7 {[%emt 0:02:47]} 31. Rg1 {[%emt 0:03:54]} Rg7 {[%emt 0:01:30]} ({Black should try} 31... Kf7 $14) 32. h5 $1 $16 {[%emt 0:02:16]} Kf7 {[%emt 0:06:05]} 33. Kf3 {[%emt 0:04:19]} gxh5 $2 {[%emt 0:05:20][%mdl 8192] [#] Black cannot hold the game after this.} (33... Ke7 $16) 34. Rxg7+ $1 {[%emt 0:04:48]} Kxg7 {[%emt 0:00:01] [#] KP-KP} 35. c4 $1 {[%emt 0:00:53]} a6 {[%emt 0:04:03]} 36. Kg3 {[%emt 0:00:05] White mates.} Kf7 {[%emt 0:00:57]} 37. Kh4 {[%emt 0:00:04]} Kg6 {[%emt 0:00:02]} 38. e6 {[%emt 0:00:20]} Kf6 {[%emt 0:00:02]} 39. Kxh5 {[%emt 0:00:08]} Kxe6 {[%emt 0:00:01]} 40. Kh6 {[%emt 0:00:06]} Kd6 {[%emt 0:00:12]} 41. Kxh7 {[%emt 0:30:05]} Kc6 {[%emt 0:30:15]} 42. Kg6 {[%emt 0:00:05]} b5 {[%emt 0:00:02]} 43. a5 {[%emt 0:00:43] Weighted Error Value: White=0.03 (flawless) /Black=0.49} 1-0

[Event "XV American Continental 2022"]
[Site "San Salvador"]
[Date "2022.05.03"]
[Round "1.2"]
[White "Holliman, Bob"]
[Black "Pichot, Alan"]
[Result "0-1"]
[ECO "A48"]
[WhiteElo "1908"]
[BlackElo "2652"]
[Annotator "TA"]
[PlyCount "66"]
[EventDate "2022.05.02"]
[EventCountry "ESA"]
[SourceTitle "playchess.com"]
[Source "ChessBase"]
[SourceQuality "1"]
[TimeControl "40/5400+30:1800+30"]

{[%evp 14,66,10,-12,-6,-18,-20,-14,12,-2,-4,-18,-12,-4,-12,-20,-18,-50,-25,-64,-62,-71,-72,-93,-75,-119,-114,-116,-72,-168,-113,-198,-211,-213,-196,-214,-203,-233,-211,-223,-144,-169,-156,-261,-251,-236,-249,-401,-401,-527,-506,-504,-508,-502,-498]} 1. d4 {[%emt 0:00:10]} Nf6 {[%emt 0:00:25]} 2. Nf3 {[%emt 0:00:11]} g6 {[%emt 0:00:25]} 3. Bg5 {[%emt 0:02:53]} Bg7 {[%emt 0:00:28]} 4. Nbd2 {[%emt 0:00:13]} O-O {[%emt 0:00:30]} 5. e3 {[%emt 0:00:06]} d6 {[%emt 0:00:40]} 6. h3 {[%emt 0:02:18]} b6 {[%emt 0:01:02]} 7. Bc4 {[%emt 0:03:36]} Bb7 {[%emt 0:01:05]} 8. O-O {[%emt 0:00:25]} Nbd7 {[%emt 0:00:48] A48: 1 d4 Nf6 2 Nf3 g6: Torre, London and Colle Systems.} 9. Qe2 {[%emt 0:00:50]} a6 {[%emt 0:01:08] [#]} 10. Bb3 $146 {[%emt 0:06:38]} ({Predecessor:} 10. a4 c5 11. c3 Qc7 12. Bd3 Rfe8 13. e4 h6 14. Be3 e5 15. d5 Nh7 16. b4 {1-0 (46) Deviatkin,A (2508)-Pichot,A (2550) Chess.com INT 2016}) 10... c5 {[%emt 0:01:34] The position is equal.} 11. c3 {[%emt 0:01:01]} b5 {[%emt 0:03:12]} 12. e4 {[%emt 0:04:40]} h6 {[%emt 0:04:52]} 13. Bh4 {[%emt 0:07:12]} e5 {[%emt 0:04:04]} 14. dxe5 {[%emt 0:02:00]} dxe5 {[%emt 0:00:25]} 15. Rfd1 {[%emt 0:00:35]} Qc7 {[%emt 0:03:51]} 16. Ne1 {[%emt 0:14:36]} c4 {[%emt 0:07:03]} 17. Bc2 {[%emt 0:00:04]} Nh5 {[%emt 0:00:16]} 18. Nf1 {[%emt 0:12:04]} Nc5 {[%emt 0:04:30]} 19. Rd2 {[%emt 0:01:34]} Nf4 {[%emt 0:02:12]} 20. Qe3 {[%emt 0:01:05]} h5 {[%emt 0:02:38] 0x0.00272dd1d841dp-1022s more active pieces. The white rooks are badly placed.} 21. Bg5 {[%emt 0:07:58] Against Bh6} (21. f3 $17) 21... Nce6 {[%emt 0:02:22]} (21... Kh7 $19 22. Rdd1 Nfe6) 22. Bxf4 {[%emt 0:00:32]} (22. Bh4 $17) 22... exf4 $19 {[%emt 0:04:31]} 23. Qe2 {[%emt 0:00:20]} b4 {[%emt 0:00:04]} 24. Rad1 {[%emt 0:01:32]} bxc3 {[%emt 0:01:07]} 25. Rd7 {[%emt 0:01:34]} Qc8 {[%emt 0:01:24]} 26. bxc3 {[%emt 0:02:32]} Bc6 {[%emt 0:00:27]} 27. R7d6 {[%emt 0:00:41]} Be5 {[%emt 0:00:24] A strong pair of Bishops.} ({Worse is} 27... Bxc3 28. Qxc4 Bb5 29. Qxc8 Raxc8 30. Bb3 $15) 28. Qxc4 {[%emt 0:00:12]} (28. R6d4 $17 {was worth a try.}) 28... Bxd6 {[%emt 0:00:17]} 29. Rxd6 {[%emt 0:00:03]} Bb5 {[%emt 0:00:45]} 30. Qd5 {[%emt 0:00:03] [#]} (30. Qb3) 30... Qxc3 {[%emt 0:03:56]} 31. Rxe6 {[%emt 0:00:19]} fxe6 {[%emt 0:00:27] Black is clearly winning.} 32. Qxe6+ {[%emt 0:00:03]} Kg7 {[%emt 0:00:59]} 33. e5 {[%emt 0:00:45]} Qc6 {[%emt 0:00:12] Weighted Error Value: White=0.33/Black=0.13 (very precise)} 0-1

[Event "XV American Continental 2022"]
[Site "San Salvador"]
[Date "2022.05.03"]
[Round "2.1"]
[White "Chavez, Ricardo Ernesto"]
[Black "Swiercz, Dariusz"]
[Result "0-1"]
[ECO "B33"]
[WhiteElo "2184"]
[BlackElo "2665"]
[Annotator "TA"]
[PlyCount "170"]
[EventDate "2022.05.02"]
[EventCountry "ESA"]
[SourceTitle "playchess.com"]
[Source "ChessBase"]
[SourceQuality "1"]
[TimeControl "40/5400+30:1800+30"]

{[%evp 27,170,30,46,11,26,12,16,10,24,32,33,16,87,87,95,23,27,32,45,14,6,14,15,20,23,0,10,5,35,24,31,16,29,0,12,0,0,0,5,-264,-248,-243,-156,-148,-168,-167,-115,-135,-120,-208,-189,-188,-187,-175,-182,-165,-148,-151,-150,-210,-203,-187,0,-187,-170,-228,-183,-250,-242,-495,-485,-519,-432,-649,0,-379,0,-641,-647,-636,-589,-487,0,-337,0,-627,-625,-617,-612,-603,-583,-2729,-2349,-6709,-6712,-6131,-1497,-3397,-1287,-29956,-29957,-29956,-29957,-29958,-1024,-29963,-29963,-29963,-29964,-29961,-29963,-29963,-29963,-29962,-29964,-29963,-29959,-29962,-29963,-29963,-29967,-29962,-29966,-29975,-29976,-29976,-29977,-29980,-29975,-29976,-29976,-29976,-29977,-29977,-29976,-29990,-29991,-29991,-29988,-29991,-29990,-29991,-29989,-29989,-29990]} 1. e4 {[%emt 0:00:05]} c5 {[%emt 0:03:07]} 2. Nf3 {[%emt 0:00:00]} Nc6 {[%emt 0:00:08]} 3. d4 {[%emt 0:00:31]} cxd4 {[%emt 0:00:05]} 4. Nxd4 {[%emt 0:00:04]} e5 {[%emt 0:01:30]} 5. Nb5 {[%emt 0:00:08]} d6 {[%emt 0:00:03]} 6. a4 {[%emt 0:00:40]} Be6 {[%emt 0:14:43]} 7. N1c3 {[%emt 0:00:45][%cal Bb1c3,Bc3d5,Bd5e3][%mdl 32]} a6 {[%emt 0:00:04]} 8. Na3 {[%emt 0:00:08]} Nf6 {[%emt 0:00:23]} 9. Bc4 {[%emt 0:00:47]} Rc8 {[%emt 0:02:55]} 10. Bg5 {[%emt 0:02:03]} Be7 {[%emt 0:04:28]} 11. Bxf6 {[%emt 0:01:35]} Bxf6 {[%emt 0:00:03]} 12. Nd5 {[%emt 0:01:47]} Bg5 {[%emt 0:03:43]} 13. O-O {[%emt 0:01:34]} O-O {[%emt 0:00:08]} 14. c3 {[%emt 0:00:15]} Kh8 {[%emt 0:00:27]} 15. Qd3 {[%emt 0:04:37] B33: Sicilian: Pelikan and Sveshnikov Variations.} f5 {[%emt 0:12:50]} 16. Ne3 {[%emt 0:01:45] Pair of Knights!} fxe4 {[%emt 0:10:45]} 17. Qxe4 {[%emt 0:00:17] The position is equal.} Rf4 {[%emt 0:00:07]} 18. Qd3 {[%emt 0:00:15]} e4 {[%emt 0:00:21]} 19. Qd1 {[%emt 0:04:11]} (19. Qd2 $5 {[%cal Rc4e6]} d5 20. Bxd5 $11) 19... Rf6 {[%emt 0:00:39]} (19... Rxf2 $11 {keeps the balance.} 20. Bxe6 (20. Rxf2 Bxe3 21. Bxe6 Bxf2+ 22. Kh1 Rb8 $15) 20... Bxe3) 20. Bxe6 $16 {[%emt 0:01:56]} Rxe6 {[%emt 0:00:05] [#]} 21. Nac4 $146 {[%emt 0:01:32]} (21. Qg4 $1 $16 {[%cal Rg4e6]} Qf6 22. Rad1) ({Predecessor:} 21. Qb3 Qe8 22. Nac2 Bf4 23. g3 Ne5 24. Nd4 Rh6 25. Nef5 Qh5 26. Nxh6 Bxh6 27. Qxb7 {1-0 (40) Schabanel,S (2230)-Bonneville,J France 1993}) 21... Bxe3 $11 {[%emt 0:22:30]} 22. Nxe3 {[%emt 0:01:49]} Qh4 {[%emt 0:00:04]} 23. Qg4 {[%emt 0:01:54]} (23. Qd5 {seems wilder.} Rh6 24. h3 Rg6 25. Qf5) 23... Qxg4 {[%emt 0:00:13]} 24. Nxg4 {[%emt 0:00:07]} h5 {[%emt 0:00:02]} 25. Ne3 {[%emt 0:00:31]} Ne5 {[%emt 0:00:02]} 26. Rad1 {[%emt 0:01:50]} Nd3 {[%emt 0:03:13]} 27. Rd2 {[%emt 0:03:47]} Rf8 {[%emt 0:00:14]} 28. Rfd1 {[%emt 0:15:58]} Rg6 {[%emt 0:00:24]} 29. Nd5 {[%emt 0:03:46]} Rg5 {[%emt 0:05:03]} 30. Ne3 {[%emt 0:02:43]} Kh7 {[%emt 0:00:57]} 31. h4 {[%emt 0:03:39]} Rg6 {[%emt 0:00:36]} 32. g3 {[%emt 0:04:52]} Rf3 {[%emt 0:09:21][%cal Od3f2]} 33. Kg2 {[%emt 0:02:22][%mdl 8192] [#]} (33. Ng2 $11 {and White has nothing to worry.}) 33... Nxf2 $1 $19 {[%emt 0:00:53][%mdl 512]} 34. Rxf2 {[%emt 0:01:57]} Rfxg3+ {[%emt 0:05:29]} 35. Kh2 {[%emt 0:03:53] Strongly threatening Re1.} Rxe3 $17 {[%emt 0:00:03][%mdl 4096] Endgame KRR-KRR} 36. Rd5 {[%emt 0:00:09]} Rh6 {[%emt 0:02:07]} ({Better is} 36... Rg4 $19 37. Rxh5+ Kg6) 37. Rg2 {[%emt 0:01:52]} Rf3 {[%emt 0:00:12]} 38. Re2 {[%emt 0:01:38]} (38. Rdg5 $17 Rf7 39. Re2) 38... e3 {[%emt 0:00:57]} 39. Kg2 {[%emt 0:00:25]} Rf4 {[%emt 0:00:04]} 40. Rxe3 {[%emt 0:09:31]} Rxh4 {[%emt 0:00:07]} 41. Re7 {[%emt 0:30:04]} Rxa4 {[%emt 0:31:20]} 42. Rxb7 {[%emt 0:00:22]} Re4 {[%emt 0:00:00]} 43. Kh3 {[%emt 0:00:00]} (43. c4 $17) 43... Re3+ {[%emt 0:00:00]} 44. Kh4 {[%emt 0:00:00]} Re4+ {[%emt 0:00:00]} 45. Kh3 {[%emt 0:00:00]} Re5 {[%emt 0:00:00]} 46. Rd4 {[%emt 0:00:00]} (46. Rxe5 $142 dxe5 47. Re7) 46... Rg6 {[%emt 0:00:00]} 47. c4 {[%emt 0:00:00]} (47. Rd2 {is a better defense.}) 47... a5 $19 {[%emt 0:01:01][%cal Ba6a5,Ba5a4][%mdl 32]} 48. Rb6 $2 {[%emt 0:00:00]} (48. Rd3 {was called for.}) 48... a4 {[%emt 0:02:17]} 49. Rb5 {[%emt 0:00:00]} Rgg5 {[%emt 0:00:43]} 50. Rb6 {[%emt 0:00:00]} (50. Rb4 $142 Re3+ 51. Kh2) 50... Rg6 {[%emt 0:00:24]} 51. Rb5 $1 {[%emt 0:00:00]} Rgg5 {[%emt 0:00:01]} (51... Rge6 52. Rxe5 dxe5) 52. Rb6 {[%emt 0:00:00]} Re3+ {[%emt 0:00:40]} 53. Kh2 {[%emt 0:00:00]} Re2+ {[%emt 0:00:01]} 54. Kh3 {[%emt 0:00:00]} Re3+ {[%emt 0:00:10]} 55. Kh2 $1 {[%emt 0:00:00]} Re2+ $2 {[%emt 0:00:03]} (55... Rf3 56. Rb4 Rf2+ 57. Kh3 Rgf5) 56. Kh3 {[%emt 0:00:00]} Reg2 {[%emt 0:00:17] ( -> ...R5g3+)} 57. Rd3 {[%emt 0:00:32] Inhibits R5g3+.} Rg1 {[%emt 0:00:10][%cal Rg1h1]} 58. Kh2 {[%emt 0:00:58] Against Rh1+} R1g4 {[%emt 0:00:50]} 59. Rbxd6 {[%emt 0:06:42]} Rxc4 {[%emt 0:00:22]} 60. Ra6 {[%emt 0:02:27]} Rh4+ {[%emt 0:01:23]} 61. Rh3 {[%emt 0:00:06]} Rxh3+ {[%emt 0:00:36]} 62. Kxh3 {[%emt 0:00:05] KR-KR} Rg4 {[%emt 0:00:04]} (62... Rb5 $142 63. Kh4 g6 64. Rxa4 Rxb2) 63. b3 {[%emt 0:00:44]} axb3 {[%emt 0:00:04]} 64. Rb6 {[%emt 0:00:04]} Ra4 {[%emt 0:00:18]} 65. Rxb3 {[%emt 0:00:06]} Kh6 {[%emt 0:00:02]} (65... Ra6 $142 66. Rb5 Kh6 67. Rb8 Ra3+ 68. Kg2 h4 69. Rh8+ Kg5 70. Rh7 g6 71. Kh2 Kg4 72. Rd7 Rh3+ 73. Kg2 Rf3 74. Kh2 g5 75. Rd4+ Rf4 76. Rd3 Rf2+ 77. Kg1 Rf3 78. Rd5 h3 79. Kh2 Kh4 80. Rb5 Rf4 81. Rb7 Rf2+ 82. Kh1 Kg3 83. Rb3+ Rf3 84. Rb1 Ra3 85. Kg1 g4 86. Rd1 Ra4 87. Rb1 Kh4 88. Rb7 Ra1+ 89. Kf2 g3+ 90. Kf3 Rf1+ 91. Ke4 g2 92. Rh7+ Kg3 93. Rg7+ Kf2 94. Rf7+ Ke1 95. Re7 g1=Q 96. Re6 h2 97. Re5 h1=Q+ 98. Kd3+ Kd1 99. Re4 Qf3+ 100. Re3 Qgxe3+ 101. Kc4 Qc3+ 102. Kb5 Qfc6#) 66. Rc3 {[%emt 0:00:22]} g6 {[%emt 0:00:08] Black mates.} 67. Rb3 {[%emt 0:01:41]} Ra6 {[%emt 0:01:00]} 68. Rc3 {[%emt 0:00:18]} Rd6 {[%emt 0:00:56]} 69. Ra3 {[%emt 0:00:27]} Rd5 {[%emt 0:00:06]} 70. Rb3 {[%emt 0:00:10]} Rd4 {[%emt 0:00:25]} 71. Ra3 {[%emt 0:00:54]} Re4 {[%emt 0:00:22]} 72. Rb3 {[%emt 0:00:06]} h4 {[%emt 0:02:31][%cal Bh5h4,Bh4h3][%mdl 32]} 73. Ra3 {[%emt 0:06:30]} Kh5 {[%emt 0:00:14]} 74. Rb3 {[%emt 0:00:40]} g5 {[%emt 0:00:04][%cal Bg6g5,Bg5g4][%mdl 32]} 75. Ra3 {[%emt 0:01:11]} g4+ {[%emt 0:00:35]} 76. Kg2 {[%emt 0:00:05]} Re2+ {[%emt 0:00:02]} 77. Kg1 {[%emt 0:00:24]} h3 {[%emt 0:00:13]} 78. Rb3 Kh4 {[%emt 0:00:30]} 79. Rb4 Kg3 {[%emt 0:00:30][%cal Re2e1]} 80. Rb1 Kf4 {[%emt 0:00:30]} 81. Ra1 g3 {[%emt 0:00:30]} 82. Rb1 Rd2 {[%emt 0:00:30]} 83. Ra1 Ke3 {[%emt 0:00:30]} 84. Re1+ Kd3 {[%emt 0:00:30]} 85. Kh1 Kc2 {[%emt 0:00:30] Weighted Error Value: White=0.30/Black=0.51} 0-1

[Event "XV American Continental 2022"]
[Site "San Salvador"]
[Date "2022.05.03"]
[Round "2.2"]
[White "Pichot, Alan"]
[Black "Lorenzana, Wilson Estuardo"]
[Result "1/2-1/2"]
[ECO "B41"]
[WhiteElo "2652"]
[BlackElo "2170"]
[Annotator "TA"]
[PlyCount "69"]
[EventDate "2022.05.02"]
[EventCountry "ESA"]
[SourceTitle "playchess.com"]
[Source "ChessBase"]
[SourceQuality "1"]
[TimeControl "40/5400+30:1800+30"]

{[%evp 14,69,42,42,30,36,39,35,43,18,42,46,70,58,65,65,77,55,122,93,102,-15,-26,-12,0,-91,-79,-83,-79,-79,-114,-92,-70,-107,-7,0,0,0,0,-77,-39,-55,-32,-52,-52,-62,-63,-52,-77,-161,-161,-158,-134,-141,-139,-139,-123,-166]} 1. e4 {[%emt 0:00:07]} c5 {[%emt 0:01:25]} 2. Nf3 {[%emt 0:00:07]} e6 {[%emt 0:00:46]} 3. d4 {[%emt 0:00:10]} cxd4 {[%emt 0:00:51]} 4. Nxd4 {[%emt 0:00:05]} a6 {[%emt 0:00:14]} 5. c4 {[%emt 0:00:24]} Nf6 {[%emt 0:01:04]} 6. Nc3 {[%emt 0:00:05]} Qc7 {[%emt 0:00:18]} 7. Be2 {[%emt 0:01:11]} Bb4 {[%emt 0:01:16]} 8. Nc2 {[%emt 0:01:50]} Bxc3+ {[%emt 0:00:39] B41: Sicilian: Kan Variation: 5 c4.} 9. bxc3 {[%emt 0:00:08]} d6 {[%emt 0:00:06]} 10. f3 {[%emt 0:02:05]} O-O {[%emt 0:02:50][%cal Od6d5] White is slightly better.} 11. Bf4 {[%emt 0:10:30] [#]} (11. O-O {is more complex.} Rd8 12. Bf4 Ne8 13. Bg5) 11... Rd8 $146 {[%emt 0:05:25]} ({Predecessor:} 11... e5 12. Bg5 Nbd7 13. O-O h6 14. Bh4 g5 15. Bf2 Nb6 16. Rb1 Na4 17. Qd2 Be6 {1-0 (60) Pichot,A (2606)-Keymer,V (2527) Chess.com INT 2020}) 12. Qd2 {[%emt 0:02:53]} Nc6 {[%emt 0:11:58]} 13. Rd1 {[%emt 0:01:32]} e5 {[%emt 0:00:14]} 14. Bg5 {[%emt 0:01:00]} Qe7 $1 {[%emt 0:00:06]} 15. O-O {[%emt 0:04:00]} Be6 {[%emt 0:07:33] [#]} (15... h6 $14 16. Be3 Qc7) 16. f4 $1 $16 {[%emt 0:16:17]} Na5 {[%emt 0:08:24]} (16... Nxe4 $2 17. Bxe7 Nxd2 18. Bxd8 Nxf1 19. Bb6 $18) 17. f5 {[%emt 0:03:07]} ({Better is} 17. Ne3 $16 {f5 is the strong threat.} Rac8 18. Bxf6 Qxf6 19. Nd5 Bxd5 20. Qxd5) 17... Bxc4 $11 {[%emt 0:00:22] And now ...d5 would win.} 18. Ne3 {[%emt 0:00:09]} d5 $1 {[%emt 0:02:32][%cal Od5e4]} 19. exd5 {[%emt 0:30:25]} (19. Bxf6 $11 {keeps the balance.} Qxf6 20. exd5 (20. Nxd5 Bxd5 21. exd5 b5 $15)) 19... Qc5 $17 {[%emt 0:02:35]} 20. Bxf6 {[%emt 0:00:27]} Rxd5 {[%emt 0:00:07]} ({But not} 20... gxf6 21. Kh1 $14) 21. Qc1 {[%emt 0:00:08]} Rxd1 {[%emt 0:06:47]} ({Much weaker is} 21... gxf6 22. Rxd5 Bxd5 23. Kh1 $11) 22. Rxd1 {[%emt 0:00:46][%cal Of6e5] aiming for Bxe5!} gxf6 {[%emt 0:00:33]} 23. Bh5 {[%emt 0:00:40]} Kh8 {[%emt 0:05:02]} ({Black should play} 23... Bxa2 $17 {Threatens to win with ...Nb3.} 24. Rd7 Kh8) 24. Kh1 $11 {[%emt 0:02:22]} Rg8 {[%emt 0:01:46]} 25. Nxc4 {[%emt 0:10:12]} Qxc4 {[%emt 0:03:48]} 26. Bf3 {[%emt 0:09:22]} (26. Qh6 $1 $11 Qc6 27. Bf3) 26... Qc7 {[%emt 0:18:41]} (26... Qxa2 27. Qh6 Nc6 28. Qxf6+ Rg7 29. Bxc6 Qa5 30. Rd8+) ({Of course not} 26... e4 $6 27. Rd4 Qxa2 28. Qh6 Qb1+ 29. Rd1 $11) 27. Qh6 {[%emt 0:02:03]} Qe7 $36 {[%emt 0:01:53][%mdl 2048] Black has the initiative.} 28. Qh4 {[%emt 0:01:38]} b5 {[%emt 0:01:45]} 29. Qb4 {[%emt 0:00:21]} Qxb4 {[%emt 0:04:39]} 30. cxb4 $15 {[%emt 0:00:01] KRB-KRN} Nc4 {[%emt 0:00:08]} 31. Rd7 {[%emt 0:00:14] [#]} (31. Kg1 $17 {might work better.}) 31... e4 $1 $19 {[%emt 0:00:52]} 32. Bxe4 {[%emt 0:01:35]} Re8 {[%emt 0:00:28]} 33. Rd4 {[%emt 0:00:07] [#]} Nd2 $1 {[%emt 0:00:36][%mdl 512]} 34. Rxd2 {[%emt 0:00:32]} Rxe4 {[%emt 0:00:06][%cal Re4e1]} 35. h3 {[%emt 0:00:49] Weighted Error Value: White=0.24 (precise) /Black=0.11 (very precise)} 1/2-1/2